bitfinex-derivatives/quotes_ETHF0:USTF0_20250602
["timestamp","ask_amount","ask_price","bid_price","bid_amount"]
[1748891036347,22.11381,2549.9,2549.8,0.78402]
[1748891038152,3.99181,2549.9,2549.8,0.78402]
[1748891039644,0.78402,2549.8,2549.7,2.09353]
[1748891039845,3.908356,2549.8,2549.7,2.09353]
[1748891040250,3.124336,2549.8,2549.7,2.09353]
[1748891040553,3.124336,2549.9,2549.8,0.78402]
[1748891040749,3.908316,2550.0,2549.9,0.78399]
[1748891041054,0.78398,2550.0,2549.9,0.78399]
[1748891041354,3.908316,2550.0,2549.9,1.3127]
[1748891041748,3.124336,2550.0,2549.7,3.929]
[1748891041952,0.78405,2549.7,2549.6,2.76978]
[1748891042146,0.78405,2549.7,2549.6,1.9857]
[1748891042447,3.908386,2549.7,2549.6,0.673]
[1748891042652,5.247586,2549.7,2549.6,0.673]
[1748891043350,3.908386,2549.7,2549.6,0.673]
[1748891043653,0.78405,2549.7,2549.6,2.73178]
[1748891044054,0.78405,2549.7,2549.6,1.9477]
[1748891044444,0.78405,2549.7,2549.6,2.73178]
[1748891046454,4.68621459,2549.8,2549.7,0.78405]
[1748891046756,0.78405,2549.8,2549.7,0.78405]
[1748891048053,0.78405,2549.7,2549.6,2.73176]
[1748891050051,0.78414,2549.4,2549.3,4.71905362]
[1748891050358,3.90346928,2549.5,2549.4,0.6749]
[1748891050561,3.90346928,2549.5,2549.4,2.7993]
[1748891050762,3.11934928,2549.5,2549.4,2.7993]
[1748891052062,3.90345928,2549.5,2549.4,2.7993]
[1748891053858,0.78411,2549.5,2549.4,2.7993]
[1748891054957,0.7841,2549.6,2549.5,0.78408]
[1748891056266,0.78411,2549.5,2549.4,1.45902]
[1748891056965,0.78411,2549.5,2549.4,0.6749]
[1748891057270,18.116,2549.5,2549.4,1.45904]
[1748891057457,18.90011,2549.5,2549.4,1.45904]
[1748891057969,18.90011,2549.5,2549.4,0.6749]
[1748891058461,18.90011,2549.5,2549.3,0.00588362]
[1748891058462,0.78414,2549.4,2549.3,0.00588362]
[1748891058657,3.90542393,2549.4,2549.3,0.00588362]
[1748891058964,0.78414,2549.4,2549.3,0.79005362]
[1748891059171,21.23776552,2549.4,2549.3,0.79005362]
[1748891059569,22.02190552,2549.4,2549.3,0.79005362]
[1748891061357,3.90590552,2549.4,2549.3,0.79005362]
[1748891061556,22.02190552,2549.4,2549.3,0.00588362]
[1748891061960,20.23164,2549.4,2549.3,0.00588362]
[1748891062257,0.78432,2548.8,2548.7,0.6375]
[1748891062463,0.78445,2548.4,2548.3,1.44306]
[1748891062658,0.78445,2548.4,2548.3,1.2961]
[1748891062862,0.78445,2548.4,2548.3,1.42198]
[1748891063061,3.90319643,2548.5,2548.4,0.78445]
[1748891063262,3.11875643,2548.5,2548.4,0.78445]
[1748891063462,22.02601112,2548.6,2548.5,0.78442]
[1748891063665,18.12284469,2548.6,2548.5,0.78442]
[1748891065274,18.90723469,2548.6,2548.5,0.78442]
[1748891065776,18.12284469,2548.6,2548.5,0.78442]
[1748891065968,0.00584469,2548.6,2548.5,0.78442]
[1748891066370,0.79023469,2548.6,2548.5,0.78442]
[1748891066870,0.00584469,2548.6,2548.5,0.78442]
[1748891067177,0.78444,2548.5,2548.4,0.78442]
[1748891068673,0.78445,2548.4,2548.3,1.42195]
[1748891070071,0.79026469,2548.6,2548.5,0.78442]
[1748891070482,0.00584469,2548.6,2548.5,0.78442]
[1748891071767,0.79023469,2548.6,2548.5,0.78442]
[1748891072563,0.00584469,2548.6,2548.5,0.78442]
[1748891072970,0.79023469,2548.6,2548.5,0.78442]
[1748891073272,0.00584469,2548.6,2548.5,0.78442]
[1748891073470,0.79023469,2548.6,2548.5,0.78442]
[1748891073671,0.00584469,2548.6,2548.5,0.78442]
[1748891074880,0.79022469,2548.6,2548.5,0.78442]
[1748891076776,0.78442,2548.5,2548.4,2.11943]
[1748891079280,0.00584469,2548.6,2548.5,0.78442]
[1748891079786,0.00584469,2548.6,2548.5,1.43332]
[1748891079985,0.00584469,2548.6,2548.5,2.72432]
[1748891083383,0.79023469,2548.6,2548.5,2.72432]
[1748891083576,0.00584469,2548.6,2548.5,2.72432]
[1748891083775,0.79023469,2548.6,2548.5,1.291]
[1748891084285,0.79023469,2548.6,2548.5,2.07542]
[1748891084471,0.79023469,2548.6,2548.5,1.291]
[1748891085376,0.79023469,2548.6,2548.5,2.07542]
[1748891085576,0.79023469,2548.6,2548.5,1.291]
[1748891086387,0.79023469,2548.6,2548.5,2.07542]
[1748891086587,0.79023469,2548.6,2548.5,1.291]
[1748891087884,0.79023469,2548.6,2548.5,2.07542]
[1748891088272,0.79023469,2548.6,2548.5,0.78442]
[1748891097891,0.79026469,2548.6,2548.5,0.78442]
[1748891098287,0.00584469,2548.6,2548.4,2.13833]
[1748891098490,0.78442,2548.5,2548.4,2.13833]
[1748891100295,0.78442,2548.5,2548.4,1.3539]
[1748891100593,0.00584469,2548.6,2548.5,0.78442]
[1748891100991,0.00584469,2548.6,2548.5,2.14612]
[1748891103203,0.00584469,2548.6,2548.5,6.06812]
[1748891105805,0.00584469,2548.6,2548.5,7.27818311]
[1748891106697,0.00584469,2548.6,2548.5,12.27818311]
[1748891107006,0.00584469,2548.6,2548.5,12.27796827]
[1748891107205,0.00584469,2548.6,2548.5,12.27795246]
[1748891107406,0.00584469,2548.6,2548.5,7.27795246]
[1748891108598,3.99199,2549.3,2549.2,0.7842]
[1748891109107,3.2078,2549.3,2549.2,0.7842]
[1748891109911,5.08608257,2549.7,2549.4,0.78414]
[1748891109912,0.78412,2549.5,2549.4,0.78414]
[1748891111294,0.78414,2549.4,2549.3,2.08545]
[1748891112705,0.78413,2549.5,2549.4,0.78411]
[1748891114509,3.2078,2549.6,2549.2,0.6225]
[1748891114510,5.16804,2549.6,2549.2,0.6225]
[1748891114807,0.78423,2549.1,2549.0,2.02204]
[1748891120513,0.78421,2549.2,2549.1,0.7842]
[1748891121807,0.78421,2549.2,2549.1,2.0241]
[1748891122607,2.67969,2549.3,2549.2,0.7842]
[1748891123803,3.99196,2549.4,2549.3,0.78417]
[1748891124717,0.7842,2549.3,2549.2,0.78419]
[1748891130323,0.78417,2549.4,2549.3,0.78417]
[1748891130520,3.91012257,2549.4,2549.3,0.78417]
[1748891130721,0.78417,2549.3,2549.2,2.09508]
[1748891132212,3.12595257,2549.5,2549.4,0.78414]
[1748891132415,3.12595257,2549.8,2549.4,3.2078]
[1748891132718,0.78397,2550.0,2549.9,0.78398]
[1748891133117,37.09455257,2550.2,2549.8,1.235]
[1748891133317,0.78396,2550.0,2549.9,0.78395]
[1748891133517,36.91365257,2550.2,2549.8,2.01899]
[1748891133518,0.78398,2549.9,2549.8,2.01899]
[1748891134022,0.78398,2549.9,2549.8,1.235]
[1748891134226,0.78398,2549.9,2549.8,2.01902]
[1748891137025,0.78397,2550.0,2549.9,0.78396]
[1748891138324,0.78399,2549.9,2549.8,2.01899]
[1748891138518,0.78399,2549.9,2549.8,0.78399]
[1748891139122,0.78398,2550.0,2549.9,0.78396]
[1748891141027,0.78398,2550.0,2549.9,1.42276]
[1748891144131,3.90993257,2550.0,2549.9,1.42276]
[1748891146128,3.12595257,2550.0,2549.9,1.42276]
[1748891146324,0.78395,2550.0,2549.9,0.6388]
[1748891146530,3.90990257,2550.0,2549.9,0.6388]
[1748891147339,3.90990257,2550.0,2549.9,1.42279]
[1748891148826,0.78395,2550.0,2549.9,1.42279]
[1748891149020,3.89423465,2550.0,2549.9,1.42279]
[1748891149832,0.78395,2550.0,2549.9,1.42279]
[1748891150527,0.78395,2550.0,2549.9,1.04033616]
[1748891150827,3.89449233,2550.0,2549.9,1.04033616]
[1748891151532,3.11054233,2550.0,2549.9,1.04033616]
[1748891152032,3.89449233,2550.0,2549.9,1.04033616]
[1748891154131,0.78395,2550.0,2549.9,1.04033616]
[1748891155432,0.78395,2550.0,2549.9,0.25634616]
[1748891155634,0.78399,2549.9,2549.8,2.02722]
[1748891155836,0.78399,2549.9,2549.8,2.70902]
[1748891157434,0.78393,2550.1,2550.0,0.78392]
[1748891157630,3.11054233,2550.2,2550.1,0.78392]
[1748891157825,0.78392,2550.1,2550.0,2.11752]
[1748891158440,0.78392,2550.2,2550.1,0.78389]
[1748891158736,0.78386,2550.3,2550.2,0.78389]
[1748891158928,3.89440233,2550.3,2550.2,0.78389]
[1748891159129,0.78386,2550.3,2550.2,0.78389]
[1748891159435,3.89440233,2550.3,2550.2,0.78389]
[1748891159937,3.89440233,2550.3,2550.2,1.44959]
[1748891160334,3.11054233,2550.3,2550.2,1.44959]
[1748891160640,0.78386,2550.4,2550.3,0.78386]
[1748891160831,0.78386,2550.4,2550.3,2.11046]
[1748891161437,3.89437233,2550.5,2550.4,0.78383]
[1748891163536,3.11054233,2550.6,2550.5,0.7838]
[1748891164832,3.89431233,2550.6,2550.5,0.7838]
[1748891167142,0.78377,2550.6,2550.5,0.7838]
[1748891168142,3.89430233,2550.7,2550.6,0.78377]
[1748891169042,0.7837,2550.9,2550.8,0.78371]
[1748891169434,0.78371,2550.8,2550.7,2.0245]
[1748891169741,0.78386,2550.4,2550.3,0.78383]
[1748891170241,0.78381,2550.6,2550.5,0.78378]
[1748891170834,0.78375,2550.7,2550.6,0.78374]
[1748891171941,0.78375,2550.7,2550.5,1.3182]
[1748891171942,0.78377,2550.6,2550.5,2.10198]
[1748891172144,0.78375,2550.7,2550.6,0.78374]
[1748891172344,6.31834233,2550.8,2550.7,0.78374]
[1748891172345,7.10207233,2550.8,2550.7,0.78374]
[1748891172539,3.99153,2550.8,2550.7,0.78374]
[1748891173036,0.78374,2550.7,2550.6,1.3182]
[1748891174439,0.78374,2550.7,2550.6,2.10195]
[1748891175344,0.78374,2550.7,2550.6,1.3182]
[1748891175745,0.78374,2550.7,2550.6,2.10197]
[1748891175940,0.78374,2550.7,2550.6,1.3182]
[1748891176142,0.78374,2550.7,2550.6,2.10197]
[1748891176652,0.7838,2550.5,2550.4,53.66]
[1748891176838,22.0676,2550.5,2550.4,53.66]
[1748891177045,22.0676,2550.5,2550.4,52.84453]
[1748891177353,23.4252,2550.5,2550.4,52.84453]
[1748891178941,28.4252,2550.5,2550.4,52.84453]
[1748891179135,32.33264071,2550.5,2550.4,7.17870186]
[1748891179341,64.13264071,2550.5,2550.4,6.30816186]
[1748891180142,64.13264071,2550.5,2550.4,5.50794186]
[1748891180343,64.13264071,2550.5,2550.4,3.64814186]
[1748891180543,64.13264071,2550.5,2550.4,2.61928186]
[1748891180745,64.13264071,2550.5,2550.4,1.53975186]
[1748891180943,64.13264071,2550.5,2550.4,1.86e-06]
[1748891181445,60.2252,2550.5,2550.4,1.86e-06]
[1748891181645,60.2252,2550.5,2549.7,4.54318362]
[1748891181646,59.4414,2550.5,2549.7,0.63518362]
[1748891181850,0.78402,2549.8,2549.7,0.00588362]
[1748891182148,21.96128155,2549.8,2549.7,0.00588362]
[1748891182354,23.26628155,2549.8,2549.7,0.00588362]
[1748891184347,20.16402,2549.8,2549.7,0.00588362]
[1748891185740,0.78426,2549.1,2548.7,5.86389]
[1748891185949,0.78426,2549.1,2549.0,1.9073]
[1748891186344,0.78426,2549.1,2549.0,2.69156]
[1748891187048,1.9602,2549.6,2549.0,1.9073]
[1748891187255,0.78416,2549.4,2549.3,0.78413]
[1748891188256,0.78413,2549.5,2549.4,0.78411]
[1748891188955,0.78411,2549.6,2549.5,0.78408]
[1748891189158,18.86111,2549.6,2549.5,0.78408]
[1748891189860,18.86111,2549.6,2549.5,2.07908]
[1748891190255,0.78407,2549.7,2549.6,0.78405]
[1748891190450,6.30462094,2549.8,2549.5,2.07908]
[1748891190451,0.78408,2549.6,2549.5,2.07908]
[1748891190853,0.78408,2549.7,2549.6,0.78406]
[1748891191159,0.78408,2549.6,2549.5,2.07909]
[1748891195452,3.2078,2549.8,2549.5,1.295]
[1748891195651,22.06882,2549.8,2549.7,0.78405]
[1748891196361,0.78405,2549.7,2549.6,2.10575]
[1748891199061,22.06885,2549.8,2549.7,0.78405]
[1748891199261,22.06885,2549.8,2549.7,2.02345]
[1748891199454,21.2848,2549.8,2549.7,2.02345]
[1748891200668,21.2838,2549.8,2549.7,2.02345]
[1748891201272,22.06782,2549.8,2549.7,2.02345]
[1748891201769,18.86002,2549.8,2549.7,2.02345]
[1748891201972,0.78402,2549.8,2549.7,2.02345]
[1748891202171,18.86001,2549.9,2549.8,0.78399]
[1748891202370,18.86001,2549.9,2549.8,2.13559]
[1748891202765,18.076,2549.9,2549.8,2.13559]
[1748891203763,18.85999,2549.9,2549.8,2.13559]
[1748891204870,18.076,2549.9,2549.8,2.13559]
[1748891205065,18.85999,2549.9,2549.8,2.13559]
[1748891205371,0.78399,2549.9,2549.8,2.13559]
[1748891205566,0.00588,2550.0,2549.9,0.78399]
[1748891205766,0.00588,2550.0,2549.9,2.63649]
[1748891206372,0.78983,2550.0,2549.9,2.63649]
[1748891206764,0.78983,2550.0,2549.9,0.621]
[1748891206972,0.78408,2549.6,2549.5,2.0156]
[1748891207276,3.99188,2549.6,2549.5,1.8698]
[1748891208268,18.074,2549.7,2549.6,0.78408]
[1748891208473,18.074,2549.7,2549.6,2.08838]
[1748891208772,18.85805,2549.7,2549.6,2.08838]
[1748891209360,18.074,2549.7,2549.6,2.08838]
[1748891210765,18.85805,2549.7,2549.6,2.08838]
[1748891216970,0.78405,2549.7,2549.6,2.08838]
[1748891217170,18.85605,2549.7,2549.6,2.08838]
[1748891219365,7.10061592,2549.8,2549.7,0.78405]
[1748891219567,25.17161592,2549.8,2549.7,2.14085]
[1748891220270,3.89281592,2549.8,2549.7,1.3568]
[1748891220877,3.89281592,2549.8,2549.7,2.14085]
[1748891221073,0.78405,2549.7,2549.5,0.6383]
[1748891221271,0.78408,2549.6,2549.5,0.6383]
[1748891221768,3.89285592,2549.6,2549.5,1.42241]
[1748891221972,3.89285592,2549.6,2549.5,2.77921]
[1748891222470,18.071,2549.6,2549.5,2.77921]
[1748891223272,3.89284592,2549.7,2549.6,0.78408]
[1748891223476,21.17877592,2549.7,2549.6,2.14268]
[1748891224068,21.96282592,2549.7,2549.6,2.14268]
[1748891224371,21.17877592,2549.7,2549.6,2.14268]
[1748891225468,3.10877592,2549.8,2549.7,0.78405]
[1748891225670,3.11465592,2550.0,2549.9,0.78399]
[1748891225874,0.00588,2550.0,2549.9,0.78399]
[1748891226070,0.00588,2550.0,2549.9,1.41169]
[1748891226573,0.00588,2550.0,2549.9,2.76139]
[1748891229884,1.9601,2549.8,2549.1,3.13579258]
[1748891230177,0.78413,2549.5,2549.4,0.78409]
[1748891230380,0.78413,2549.5,2549.4,2.02659]
[1748891230970,0.78414,2549.4,2549.3,0.6176]
[1748891231178,0.78417,2549.3,2549.2,0.6745]
[1748891232378,0.78417,2549.3,2549.2,1.4587]
[1748891233476,0.78417,2549.3,2549.2,0.6745]
[1748891233678,0.78417,2549.3,2549.2,1.4587]
[1748891233876,0.78416,2549.4,2549.3,0.78414]
[1748891234077,25.16640295,2549.5,2549.4,0.78414]
[1748891234276,22.05994,2549.5,2549.4,0.78414]
[1748891235978,0.78414,2549.4,2549.3,2.08365]
[1748891236883,3.10161886,2549.4,2549.3,2.08365]
[1748891237285,3.88575886,2549.4,2549.3,2.08365]
[1748891237882,0.78417,2549.3,2549.2,0.6745]
[1748891238290,0.78417,2549.3,2549.2,1.4587]
[1748891239388,3.88578886,2549.3,2549.2,1.4587]
[1748891239588,0.78417,2549.3,2549.2,1.4587]
[1748891240088,3.88578886,2549.3,2549.2,1.4587]
[1748891240387,0.78417,2549.3,2549.2,1.4587]
[1748891241874,0.78417,2549.3,2549.2,0.6745]
[1748891242081,5.06204886,2549.3,2548.8,0.68258362]
[1748891242283,0.78426,2549.0,2548.9,0.6585]
[1748891242486,0.78429,2548.9,2548.8,2.06119362]
[1748891242879,0.78429,2548.9,2548.8,1.27688362]
[1748891243280,0.78429,2548.9,2548.8,0.00588362]
[1748891243786,5.21640886,2548.9,2548.8,0.00588362]
[1748891244090,2.41754437,2548.9,2548.8,0.00588362]
[1748891244580,6.31254437,2548.9,2548.8,0.00588362]
[1748891248086,11.31254437,2548.9,2548.8,3.62e-06]
[1748891248287,14.41268671,2548.9,2548.8,3.62e-06]
[1748891250286,14.41268671,2548.9,2547.7,38.12741]
[1748891250287,31.80505437,2548.9,2547.7,0.78463]
[1748891250493,0.7846,2547.9,2547.8,0.6504]
[1748891250684,3.2078,2547.9,2547.5,1.891]
[1748891250984,0.78469,2547.7,2547.6,0.78467]
[1748891251384,0.78465,2547.8,2547.7,0.78463]
[1748891251586,3.99830362,2547.9,2547.8,0.78463]
[1748891252189,0.78465,2547.8,2547.7,0.78464]
[1748891252398,3.21368362,2547.9,2547.8,0.78463]
[1748891252697,0.00588362,2547.9,2547.8,0.78463]
[1748891252897,0.78465,2547.8,2547.7,0.78464]
[1748891253093,0.78469,2547.6,2547.5,3.32611]
[1748891253289,0.78469,2547.6,2547.5,2.5414]
[1748891253894,0.78469,2547.6,2547.5,3.32612]
[1748891254401,0.78469,2547.6,2547.5,2.5414]
[1748891255801,0.78469,2547.6,2547.5,3.32612]
[1748891255999,0.78469,2547.6,2547.5,2.5414]
[1748891256410,0.78469,2547.6,2547.5,3.32612]
[1748891256603,0.78469,2547.6,2547.5,2.5414]
[1748891256799,3.2078,2547.7,2547.4,0.79062362]
[1748891256800,0.78472,2547.5,2547.4,0.00588362]
[1748891256998,0.78472,2547.5,2547.4,0.79063362]
[1748891257495,0.78472,2547.5,2547.4,0.00588362]
[1748891259003,0.78472,2547.5,2547.4,0.79063362]
[1748891259502,0.78472,2547.5,2547.4,0.00588362]
[1748891259503,18.85772,2547.5,2547.4,0.00588362]
[1748891260504,18.85772,2547.5,2547.4,1.34778362]
[1748891260705,18.85772,2547.5,2547.4,2.13253362]
[1748891261906,18.85772,2547.5,2547.4,1.34778362]
[1748891263806,18.85772,2547.5,2547.4,2.13253362]
[1748891265104,18.85772,2547.5,2547.4,1.34778362]
[1748891265811,18.85772,2547.5,2547.4,2.13253362]
[1748891267711,50.65772,2547.5,2547.4,2.13253362]
[1748891270805,50.65772,2547.5,2547.4,0.00588362]
[1748891271108,54.873,2547.5,2546.5,3.2078]
[1748891271307,0.78503,2546.5,2546.4,0.6247]
[1748891271510,22.06583,2546.5,2546.4,0.6247]
[1748891271813,0.78519,2546.0,2545.9,6.24547522]
[1748891272008,0.78519,2546.0,2545.9,0.78522]
[1748891272414,0.78518,2546.1,2546.0,0.78516]
[1748891273018,0.79102362,2546.2,2546.1,0.78516]
[1748891273312,18.86600362,2546.2,2546.1,0.78516]
[1748891273815,0.78518,2546.1,2546.0,0.78517]
[1748891274016,18.86601362,2546.2,2546.1,0.78516]
[1748891275315,18.08088362,2546.2,2546.1,0.78516]
[1748891277817,18.86600362,2546.2,2546.1,0.78516]
[1748891278016,0.78522,2546.0,2545.9,0.7852]
[1748891278212,0.78522,2545.9,2545.8,0.6247]
[1748891278409,0.78522,2545.9,2545.8,1.331]
[1748891279311,0.78525,2545.8,2545.7,0.00588362]
[1748891279615,3.99303,2545.9,2545.7,0.00588362]
[1748891279814,0.78523,2545.9,2545.8,0.78525]
[1748891280115,0.78521,2546.0,2545.9,0.7852]
[1748891280315,18.86219,2546.1,2546.0,0.78519]
[1748891280516,0.00588362,2546.2,2546.1,0.78516]
[1748891281318,0.00588362,2546.2,2546.1,1.40066]
[1748891281512,18.86800362,2546.2,2546.1,1.40066]
[1748891282518,0.00588362,2546.2,2546.1,1.40066]
[1748891283907,0.79100362,2546.2,2546.1,1.40066]
[1748891284115,0.79100362,2546.2,2546.1,0.6155]
[1748891284423,0.78522,2545.9,2545.8,0.78522]
[1748891284620,0.78522,2545.9,2545.8,2.02842]
[1748891284919,2.03018,2546.1,2546.0,0.78519]
[1748891285221,0.78518,2546.1,2546.0,0.78519]
[1748891285918,31.80588362,2546.2,2545.8,1.2432]
[1748891286116,0.78522,2545.9,2545.8,1.2432]
[1748891286314,0.78525,2545.8,2545.7,0.00588362]
[1748891286516,2.09785,2545.8,2545.7,0.00588362]
[1748891287524,2.66235,2545.8,2545.7,0.00588362]
[1748891288724,7.66235,2545.8,2545.7,3.62e-06]
[1748891288926,0.7855,2545.0,2544.9,0.78551]
[1748891289122,3.2078,2545.1,2545.0,0.7855]
[1748891289416,3.2078,2545.1,2544.7,0.6434]
[1748891289417,0.78556,2544.8,2544.7,0.6434]
[1748891289620,0.78556,2544.8,2544.7,1.937]
[1748891290120,0.78556,2544.8,2544.7,2.72259]
[1748891290525,3.99334,2544.9,2544.8,0.78556]
[1748891290823,77.63209581,2546.6,2545.2,0.78543]
[1748891290824,3.2078,2545.3,2545.2,0.78543]
[1748891291018,0.78542,2545.3,2545.2,0.78543]
[1748891292628,18.86838,2545.4,2545.3,0.7854]
[1748891292829,18.86838,2545.4,2545.2,0.78541]
[1748891292830,0.78543,2545.3,2545.2,0.78541]
[1748891294031,20.04645,2545.4,2545.0,1.2936]
[1748891294330,0.78553,2544.9,2544.8,0.6579]
[1748891294528,0.78556,2544.8,2544.7,0.6434]
[1748891294920,0.78556,2544.8,2544.7,1.42899]
[1748891295830,0.78562,2544.6,2544.5,0.00588362]
[1748891296031,22.07742,2544.6,2544.5,0.00588362]
[1748891296426,3.2078,2544.6,2544.5,0.79153362]
[1748891296638,0.00588362,2544.8,2544.7,0.78559]
[1748891297233,0.78559,2544.7,2544.6,2.7627]
[1748891298631,0.78562,2544.6,2544.5,0.00588362]
[1748891298837,5.34942,2544.6,2544.5,0.00588362]
[1748891302241,27.33242,2544.6,2544.5,0.00588362]
[1748891304534,31.5468,2544.6,2543.6,0.7859]
[1748891304731,0.78593,2543.6,2543.5,2.603]
[1748891305334,20.05367,2543.8,2543.5,2.603]
[1748891305335,0.78593,2543.7,2543.5,2.603]
[1748891305536,0.78593,2543.7,2543.6,0.7859]
[1748891305941,0.78593,2543.6,2543.5,3.38893]
[1748891308042,0.78593,2543.6,2543.5,2.603]
[1748891308249,3.99373,2543.6,2543.5,2.603]
[1748891308548,0.78599,2543.4,2543.3,0.79189553]
[1748891308746,0.78599,2543.5,2543.4,0.78595]
[1748891309249,0.78599,2543.4,2543.3,0.79190553]
[1748891309449,0.78599,2543.4,2543.3,0.00589553]
[1748891309653,0.78625,2542.6,2542.4,3.2078]
[1748891309842,0.78627,2542.6,2542.5,2.04235]
[1748891310339,0.78623,2542.7,2542.6,0.78621]
[1748891310540,0.78624,2542.6,2542.5,2.04235]
[1748891310741,0.78624,2542.6,2542.5,1.2561]
[1748891311041,0.00589553,2542.8,2542.7,0.78621]
[1748891311242,18.09989553,2542.8,2542.7,0.78621]
[1748891311439,0.78624,2542.6,2542.5,1.2561]
[1748891311940,18.87333984,2542.8,2542.7,0.78621]
[1748891312141,0.78624,2542.6,2542.5,2.04235]
[1748891312450,18.87922537,2542.8,2542.7,0.78621]
[1748891312837,0.78622,2542.7,2542.6,0.78621]
[1748891313536,18.89508553,2542.8,2542.7,0.78621]
[1748891314956,18.10889553,2542.8,2542.7,0.85690789]
[1748891315249,3.2078,2543.5,2543.4,0.78599]
[1748891315439,3.99365,2543.9,2543.8,0.78587]
[1748891315645,0.7859,2543.8,2543.7,0.78588]
[1748891315853,3.99364,2543.9,2543.8,0.78587]
[1748891316055,0.78588,2543.8,2543.7,0.78588]
[1748891316249,3.2078,2543.9,2543.8,0.78587]
[1748891316454,3.99363,2543.9,2543.8,0.78587]
[1748891316759,3.2078,2543.9,2543.8,0.78587]
[1748891317947,3.2078,2543.9,2543.5,1.97078553]
[1748891317948,0.79171553,2544.0,2543.9,0.78583]
[1748891318449,0.00589553,2544.0,2543.9,0.78583]
[1748891318643,0.00589553,2544.0,2543.9,5.78583]
[1748891318848,0.00589553,2544.0,2543.9,4.68383]
[1748891319048,0.00589553,2544.0,2543.9,5.34213]
[1748891319349,0.00589553,2544.0,2543.9,10.34213]
[1748891319947,5.53e-06,2544.0,2543.9,10.34213]
[1748891321359,5.53e-06,2544.0,2543.9,7.62403201]
[1748891321557,5.53e-06,2544.0,2543.9,11.52103201]
[1748891321856,5.53e-06,2544.0,2543.9,7.62403201]
[1748891322054,5.53e-06,2544.0,2543.9,10.34113]
[1748891322856,5.53e-06,2544.0,2543.9,5.34113]
[1748891324951,5.53e-06,2544.0,2543.9,6.64453]
[1748891325651,0.78580553,2544.0,2543.9,6.64453]
[1748891325957,5.53e-06,2544.0,2543.9,2.74753]
[1748891328361,5.53e-06,2544.0,2543.9,7.74753]
[1748891329055,5.53e-06,2544.0,2543.9,8.9290028]
[1748891329954,5.53e-06,2544.0,2543.9,7.74753]
[1748891330355,5.53e-06,2544.0,2543.9,7.81822789]
[1748891331054,5.53e-06,2544.0,2543.9,2.81822789]
[1748891331255,5.53e-06,2544.0,2543.9,7.81822789]
[1748891334366,5.53e-06,2544.0,2543.9,8.92422789]
[1748891337764,5.53e-06,2544.0,2543.9,7.83922789]
[1748891338172,5.53e-06,2544.0,2543.9,3.92422789]
[1748891338360,5.53e-06,2544.0,2543.9,7.83922789]
[1748891338562,5.53e-06,2544.0,2543.9,3.92422789]
[1748891338769,5.53e-06,2544.0,2543.9,1.96252789]
[1748891339663,1.32910553,2544.0,2543.9,1.96252789]
[1748891340165,1.32910553,2544.0,2543.9,0.85652789]
[1748891340562,2.11490553,2544.0,2543.9,0.07069789]
[1748891344676,33.91490553,2544.0,2543.9,0.07069789]
[1748891346374,38.91490553,2544.0,2543.9,0.07069789]
[1748891346680,38.91490553,2544.0,2543.9,0.06480236]
[1748891348386,33.91490553,2544.0,2543.9,0.06480236]
[1748891348587,2.11490553,2544.0,2543.9,0.06480236]
[1748891348781,2.11490553,2544.0,2543.9,0.85063236]
[1748891349177,1.32910553,2544.0,2543.9,0.85063236]
[1748891349383,5.53e-06,2544.0,2543.9,0.85063236]
[1748891349580,5.53e-06,2544.0,2543.9,4.76663236]
[1748891350577,5.53e-06,2544.0,2543.9,9.76663236]
[1748891350777,5.53e-06,2544.0,2543.9,10.95173435]
[1748891350979,5.53e-06,2544.0,2543.9,12.21633435]
[1748891351681,5.53e-06,2544.0,2543.9,12.21631925]
[1748891353789,5.53e-06,2544.0,2543.9,8.30031925]
[1748891354091,5.53e-06,2544.0,2543.9,12.21531925]
[1748891355392,5.53e-06,2544.0,2543.9,7.21531925]
[1748891355584,5.53e-06,2544.0,2543.9,7.21520854]
[1748891359393,5.53e-06,2544.0,2543.9,7.2149907]
[1748891359590,5.53e-06,2544.0,2543.9,8.3209907]
[1748891360187,5.53e-06,2544.0,2543.9,13.3209907]
[1748891360993,5.53e-06,2544.0,2543.9,15.66110768]
[1748891361598,5.53e-06,2544.0,2543.9,13.3209907]
[1748891363497,5.53e-06,2544.0,2543.9,9.40500853]
[1748891363699,5.53e-06,2544.0,2543.9,14.48361969]
[1748891363900,5.53e-06,2544.0,2543.9,8.31100853]
[1748891364698,1.2321,2545.2,2544.6,0.78562]
[1748891364895,1.2321,2545.2,2545.1,0.78546]
[1748891365401,6.2321,2545.2,2544.9,3.2078]
[1748891365603,0.78549,2545.1,2544.9,3.99331]
[1748891366104,1.3406,2545.0,2544.9,3.99331]
[1748891367301,2.1261,2545.0,2544.9,3.2078]
[1748891367509,0.78551,2545.0,2544.8,0.79144553]
[1748891367810,1.3406,2544.9,2544.8,0.79144553]
[1748891368004,2.12613,2544.9,2544.8,0.79144553]
[1748891368205,2.12613,2544.9,2544.8,0.00589553]
[1748891368503,10.33393,2544.9,2544.8,0.00589553]
[1748891369318,5.33393,2544.9,2544.8,0.00589553]
[1748891369808,4.5484,2544.9,2544.8,0.79145553]
[1748891370207,5.33393,2544.9,2544.8,0.00589553]
[1748891371310,5.33393,2544.9,2544.8,0.79145553]
[1748891371512,2.12613,2544.9,2544.8,0.00589553]
[1748891371905,1.3406,2544.9,2544.8,0.79145553]
[1748891372911,2.12613,2544.9,2544.8,0.79145553]
[1748891374599,1.3406,2544.9,2544.8,0.79145553]
[1748891374804,9.5933,2545.2,2544.8,0.00589553]
[1748891375013,5.6873,2545.2,2544.8,0.00589553]
[1748891375200,6.47276,2545.2,2545.0,0.78547]
[1748891375404,6.47276,2545.2,2545.1,0.78546]
[1748891375910,11.47276,2545.2,2545.1,0.78546]
[1748891376508,0.78549,2545.1,2545.0,0.78548]
[1748891376811,2.03289,2545.1,2545.0,0.78548]
[1748891377111,0.6665,2545.2,2545.0,3.2078]
[1748891377304,0.00589553,2545.3,2545.2,0.78543]
[1748891386520,0.00589553,2545.3,2545.2,4.69043]